[Event "*** Titled Tuesday 3|2 Blitz"]
[Site "Chess.com"]
[Date "2015.05.05"]
[Round "3"]
[White "LuckyTiger"]
[Black "jcibarra"]
[Result "0-1"]
[WhiteElo "2463"]
[BlackElo "2512"]
[TimeControl "180+2"]
[EndTime "11:37:13 PDT"]
[Termination "jcibarra won by resignation"]

1. e4 {[%clk 0:03:01.9]} 1... e5 {[%clk 0:03:00.3]} 2. Nf3 {[%clk 0:03:02.7]}
2... d6 {[%clk 0:03:01.5]} 3. d4 {[%clk 0:03:02.2]} 3... exd4 {[%clk 0:03:03.4]}
4. Nxd4 {[%clk 0:03:02]} 4... Nf6 {[%clk 0:03:04.8]} 5. Nc3 {[%clk 0:03:03.2]}
5... Be7 {[%clk 0:03:05.8]} 6. Be2 {[%clk 0:03:04]} 6... O-O {[%clk 0:03:06.9]}
7. O-O {[%clk 0:03:05.7]} 7... Re8 {[%clk 0:03:07.8]} 8. Re1 {[%clk 0:03:07]}
8... Bf8 {[%clk 0:03:08.5]} 9. Bf1 {[%clk 0:03:07.9]} 9... Nbd7 {[%clk
0:03:08.9]} 10. Bg5 {[%clk 0:02:53.7]} 10... c6 {[%clk 0:03:06.6]} 11. Qd2
{[%clk 0:02:50.3]} 11... h6 {[%clk 0:03:02.6]} 12. Bh4 {[%clk 0:02:46]} 12...
Ne5 {[%clk 0:02:55.9]} 13. Rad1 {[%clk 0:02:38.9]} 13... Ng6 {[%clk 0:02:51.1]}
14. Bg3 {[%clk 0:02:36.7]} 14... Nh5 {[%clk 0:02:51.5]} 15. Bc4 {[%clk
0:02:02.2]} 15... Nxg3 {[%clk 0:02:49.9]} 16. hxg3 {[%clk 0:02:03]} 16... Ne5
{[%clk 0:02:45]} 17. Bb3 {[%clk 0:02:03.2]} 17... g6 {[%clk 0:02:43.8]} 18. a3
{[%clk 0:01:55.9]} 18... Qb6 {[%clk 0:02:38.3]} 19. Nf3 {[%clk 0:01:13.9]} 19...
Bg4 {[%clk 0:02:19]} 20. Qf4 {[%clk 0:01:12.4]} 20... g5 {[%clk 0:01:37]} 21.
Qe3 {[%clk 0:01:13.3]} 21... Qxe3 {[%clk 0:01:31.7]} 22. Rxe3 {[%clk 0:01:15.2]}
22... Rad8 {[%clk 0:00:48.3]} 23. Rd2 {[%clk 0:01:04.3]} 23... Bg7 {[%clk
0:00:29.8]} 24. Kf1 {[%clk 0:01:03]} 24... Bh5 {[%clk 0:00:28.4]} 25. Nxe5
{[%clk 0:00:21.8]} 25... Bxe5 {[%clk 0:00:28.8]} 26. Bc4 {[%clk 0:00:22.6]}
26... Kf8 {[%clk 0:00:27.7]} 27. Be2 {[%clk 0:00:22.2]} 27... Bg6 {[%clk
0:00:28.8]} 28. Bf3 {[%clk 0:00:21.8]} 28... b5 {[%clk 0:00:28.2]} 29. Nd1
{[%clk 0:00:20.9]} 29... Ke7 {[%clk 0:00:26.5]} 30. Re1 {[%clk 0:00:21.3]} 30...
Kf8 {[%clk 0:00:25.3]} 31. c3 {[%clk 0:00:21.7]} 31... h5 {[%clk 0:00:20.9]} 32.
g4 {[%clk 0:00:19.6]} 32... Bf4 {[%clk 0:00:20.1]} 33. Rde2 {[%clk 0:00:20]}
33... hxg4 {[%clk 0:00:18.3]} 34. Bxg4 {[%clk 0:00:21.9]} 34... d5 {[%clk
0:00:20.2]} 35. g3 {[%clk 0:00:21.8]} 35... Bc7 {[%clk 0:00:19.5]} 36. Bf5
{[%clk 0:00:12.1]} 36... Bxf5 {[%clk 0:00:16]} 37. exf5 {[%clk 0:00:14]} 37...
Rxe2 {[%clk 0:00:17.1]} 38. Rxe2 {[%clk 0:00:15.9]} 38... Re8 {[%clk 0:00:18.1]}
39. Ne3 {[%clk 0:00:17.3]} 39... Bb6 {[%clk 0:00:18.5]} 40. Ng4 {[%clk
0:00:15.8]} 40... Rxe2 {[%clk 0:00:19.1]} 41. Kxe2 {[%clk 0:00:17.7]} 41... Ke7
{[%clk 0:00:21]} 42. b3 {[%clk 0:00:16.1]} 42... c5 {[%clk 0:00:21]} 43. Kd3
{[%clk 0:00:17]} 43... c4+ {[%clk 0:00:22]} 44. bxc4 {[%clk 0:00:18.1]} 44...
bxc4+ {[%clk 0:00:19.4]} 45. Kd2 {[%clk 0:00:19.1]} 45... Kd6 {[%clk 0:00:19.9]}
46. a4 {[%clk 0:00:19.4]} 46... Bc5 {[%clk 0:00:19.4]} 47. Ke2 {[%clk
0:00:16.3]} 47... d4 {[%clk 0:00:18.7]} 48. cxd4 {[%clk 0:00:13.1]} 48... Bxd4
{[%clk 0:00:20.6]} 49. Kd2 {[%clk 0:00:14.6]} 49... Kc5 {[%clk 0:00:21.2]} 50.
Nh6 {[%clk 0:00:11.8]} 50... f6 {[%clk 0:00:20.6]} 51. Ng4 {[%clk 0:00:10.6]}
51... Kb4 {[%clk 0:00:21.4]} 52. f3 {[%clk 0:00:10.5]} 52... Kb3 {[%clk
0:00:22.5]} 53. Kc1 {[%clk 0:00:10.8]} 53... c3 {[%clk 0:00:23.5]} 0-1

[Event "*** Titled Tuesday 3|2 Blitz"]
[Site "Chess.com"]
[Date "2015.05.05"]
[Round "3"]
[White "Palacios-LLera"]
[Black "AndrewMcStone"]
[Result "1-0"]
[WhiteElo "2108"]
[BlackElo "1984"]
[TimeControl "180+2"]
[EndTime "11:38:08 PDT"]
[Termination "Palacios-LLera won by resignation"]

1. d4 {[%clk 0:03:01.9]} 1... Nf6 {[%clk 0:03:00.2]} 2. Nf3 {[%clk 0:03:03]}
2... g6 {[%clk 0:03:01.3]} 3. c3 {[%clk 0:03:04.2]} 3... Bg7 {[%clk 0:03:02.8]}
4. Bg5 {[%clk 0:03:05.6]} 4... h6 {[%clk 0:03:01.5]} 5. Bh4 {[%clk 0:03:06.6]}
5... d6 {[%clk 0:03:00.8]} 6. Nbd2 {[%clk 0:03:07.2]} 6... Bf5 {[%clk
0:02:57.5]} 7. Qb3 {[%clk 0:03:06.8]} 7... Qc8 {[%clk 0:02:49.2]} 8. e3 {[%clk
0:03:02.3]} 8... O-O {[%clk 0:02:43.8]} 9. Be2 {[%clk 0:03:02.4]} 9... c5 {[%clk
0:02:38.3]} 10. dxc5 {[%clk 0:03:01.6]} 10... dxc5 {[%clk 0:02:36.1]} 11. O-O
{[%clk 0:03:02.6]} 11... Nc6 {[%clk 0:02:24.5]} 12. a4 {[%clk 0:02:50.4]} 12...
g5 {[%clk 0:02:15.8]} 13. Bg3 {[%clk 0:02:50.8]} 13... Nh5 {[%clk 0:02:17.2]}
14. Rfd1 {[%clk 0:01:56.6]} 14... Nxg3 {[%clk 0:02:15.4]} 15. hxg3 {[%clk
0:01:57.1]} 15... Qc7 {[%clk 0:02:14.2]} 16. e4 {[%clk 0:01:52.3]} 16... Bg6
{[%clk 0:01:57]} 17. Bf1 {[%clk 0:01:51.1]} 17... Rad8 {[%clk 0:01:45.7]} 18.
Re1 {[%clk 0:01:46.5]} 18... b6 {[%clk 0:01:07.2]} 19. Rad1 {[%clk 0:01:36.8]}
19... Rd7 {[%clk 0:01:07.5]} 20. Nc4 {[%clk 0:01:34.9]} 20... Rfd8 {[%clk
0:01:08.2]} 21. Rxd7 {[%clk 0:01:34.6]} 21... Rxd7 {[%clk 0:01:02.8]} 22. Qc2
{[%clk 0:01:33.6]} 22... e6 {[%clk 0:00:30.1]} 23. Nfd2 {[%clk 0:01:07]} 23...
Qd8 {[%clk 0:00:24.6]} 24. g4 {[%clk 0:00:48.8]} 24... Ne5 {[%clk 0:00:25.2]}
25. f3 {[%clk 0:00:45.5]} 25... Nxc4 {[%clk 0:00:17.8]} 26. Nxc4 {[%clk
0:00:46.5]} 26... Qf6 {[%clk 0:00:10.1]} 27. Rd1 {[%clk 0:00:43]} 27... Qd8
{[%clk 0:00:11.1]} 28. Rxd7 {[%clk 0:00:42.7]} 28... Qxd7 {[%clk 0:00:13]} 29.
Kf2 {[%clk 0:00:36.9]} 29... Kf8 {[%clk 0:00:13.5]} 30. Ne3 {[%clk 0:00:32.1]}
30... Ke7 {[%clk 0:00:14]} 31. Bb5 {[%clk 0:00:32.1]} 31... Qd6 {[%clk
0:00:11.9]} 32. Qd3 {[%clk 0:00:30.3]} 32... Be5 {[%clk 0:00:12.2]} 33. Qxd6+
{[%clk 0:00:30.9]} 33... Bxd6 {[%clk 0:00:13.5]} 34. Nc4 {[%clk 0:00:31.8]}
34... Bc7 {[%clk 0:00:14.7]} 35. g3 {[%clk 0:00:24.4]} 35... f6 {[%clk
0:00:15.8]} 36. Ne3 {[%clk 0:00:23.2]} 36... Bf7 {[%clk 0:00:15.5]} 37. Bc4
{[%clk 0:00:21]} 37... Be5 {[%clk 0:00:13.7]} 38. Bb5 {[%clk 0:00:21]} 38... Bc7
{[%clk 0:00:14.9]} 39. Nc4 {[%clk 0:00:19.6]} 39... Bb8 {[%clk 0:00:16.1]} 40.
a5 {[%clk 0:00:19.9]} 40... Bc7 {[%clk 0:00:17.2]} 41. axb6 {[%clk 0:00:21.2]}
41... axb6 {[%clk 0:00:19.1]} 42. Bc6 {[%clk 0:00:20.2]} 42... Bg6 {[%clk
0:00:16.5]} 43. Na3 {[%clk 0:00:19.7]} 43... Be8 {[%clk 0:00:17.3]} 44. Bxe8
{[%clk 0:00:19.8]} 44... Kxe8 {[%clk 0:00:19.2]} 45. Nb5 {[%clk 0:00:21]} 45...
Kd7 {[%clk 0:00:20]} 46. c4 {[%clk 0:00:20.2]} 46... Be5 {[%clk 0:00:18.9]} 47.
b3 {[%clk 0:00:21.2]} 47... Kc6 {[%clk 0:00:20.2]} 48. Na7+ {[%clk 0:00:20.5]}
48... Kb7 {[%clk 0:00:20.8]} 49. Nb5 {[%clk 0:00:21.2]} 49... Kc6 {[%clk
0:00:22.4]} 50. Na3 {[%clk 0:00:22.2]} 50... Bd4+ {[%clk 0:00:22.5]} 51. Ke2
{[%clk 0:00:22.6]} 51... Kd6 {[%clk 0:00:21.2]} 52. f4 {[%clk 0:00:23.3]} 52...
Kc6 {[%clk 0:00:18.8]} 53. Nb5 {[%clk 0:00:23.1]} 53... Bg1 {[%clk 0:00:17.9]}
54. Kf3 {[%clk 0:00:23.5]} 54... Bd4 {[%clk 0:00:11.8]} 55. Nxd4+ {[%clk
0:00:16.7]} 55... cxd4 {[%clk 0:00:12.2]} 56. e5 {[%clk 0:00:15.2]} 56... fxe5
{[%clk 0:00:13.2]} 57. fxe5 {[%clk 0:00:16.5]} 57... Kc5 {[%clk 0:00:11.2]} 58.
Ke4 {[%clk 0:00:18]} 58... Kb4 {[%clk 0:00:09.4]} 59. Kxd4 {[%clk 0:00:19.4]}
59... Kxb3 {[%clk 0:00:10.7]} 60. c5 {[%clk 0:00:21.1]} 60... bxc5+ {[%clk
0:00:03.5]} 61. Kxc5 {[%clk 0:00:22.4]} 61... Kc3 {[%clk 0:00:04.3]} 62. Kd6
{[%clk 0:00:23.9]} 62... Kd4 {[%clk 0:00:05.9]} 63. Kxe6 {[%clk 0:00:25.5]}
63... Ke4 {[%clk 0:00:06.4]} 64. Kf6 {[%clk 0:00:27.1]} 64... Kf3 {[%clk
0:00:07.8]} 65. e6 {[%clk 0:00:27.3]} 65... Kxg4 {[%clk 0:00:09.7]} 66. e7
{[%clk 0:00:28.1]} 66... h5 {[%clk 0:00:11.2]} 67. e8=Q {[%clk 0:00:28.8]} 67...
h4 {[%clk 0:00:13.1]} 68. gxh4 {[%clk 0:00:29.3]} 68... gxh4 {[%clk 0:00:14.2]}
69. Qe2+ {[%clk 0:00:29.8]} 1-0

[Event "*** Titled Tuesday 3|2 Blitz"]
[Site "Chess.com"]
[Date "2015.05.05"]
[Round "3"]
[White "Inopov"]
[Black "megarompa"]
[Result "1/2-1/2"]
[WhiteElo "2492"]
[BlackElo "2668"]
[TimeControl "180+2"]
[EndTime "11:39:43 PDT"]
[Termination "Game drawn - insufficient material"]

1. Nf3 {[%clk 0:03:01.9]} 1... d5 {[%clk 0:03:00.1]} 2. g3 {[%clk 0:03:02.5]}
2... Nf6 {[%clk 0:03:00.6]} 3. Bg2 {[%clk 0:03:03]} 3... c6 {[%clk 0:03:02.5]}
4. c4 {[%clk 0:03:03]} 4... g6 {[%clk 0:03:00]} 5. b3 {[%clk 0:03:02.9]} 5...
Bg7 {[%clk 0:03:00.8]} 6. Bb2 {[%clk 0:03:04.5]} 6... O-O {[%clk 0:03:01]} 7.
O-O {[%clk 0:03:05.5]} 7... a5 {[%clk 0:02:57.8]} 8. cxd5 {[%clk 0:02:58.5]}
8... cxd5 {[%clk 0:02:56]} 9. Nc3 {[%clk 0:02:59.7]} 9... Nc6 {[%clk 0:02:48.7]}
10. Na4 {[%clk 0:02:53.9]} 10... Re8 {[%clk 0:02:39.4]} 11. Ne5 {[%clk
0:02:50.1]} 11... Nxe5 {[%clk 0:02:37.4]} 12. Bxe5 {[%clk 0:02:52]} 12... Bd7
{[%clk 0:02:35]} 13. Rc1 {[%clk 0:02:51.1]} 13... Bc6 {[%clk 0:02:36.6]} 14. d3
{[%clk 0:02:47.9]} 14... Nd7 {[%clk 0:02:32.9]} 15. Bxg7 {[%clk 0:02:46.1]}
15... Kxg7 {[%clk 0:02:34.8]} 16. Qd2 {[%clk 0:02:43.9]} 16... e5 {[%clk
0:02:34.9]} 17. Qb2 {[%clk 0:02:38.1]} 17... f6 {[%clk 0:02:30.4]} 18. Rc2
{[%clk 0:02:36.5]} 18... Qe7 {[%clk 0:02:30]} 19. Rfc1 {[%clk 0:02:35.4]} 19...
Rad8 {[%clk 0:02:25.4]} 20. Nc5 {[%clk 0:02:25.4]} 20... Nb8 {[%clk 0:02:06.1]}
21. d4 {[%clk 0:02:04.9]} 21... e4 {[%clk 0:02:02.5]} 22. e3 {[%clk 0:02:05.7]}
22... h5 {[%clk 0:01:58.2]} 23. Qc3 {[%clk 0:01:42.2]} 23... b6 {[%clk
0:01:48.4]} 24. Na4 {[%clk 0:01:43]} 24... Qb7 {[%clk 0:01:42.8]} 25. Qd2 {[%clk
0:01:35.1]} 25... Rc8 {[%clk 0:01:42.3]} 26. Nc3 {[%clk 0:01:31.4]} 26... Na6
{[%clk 0:01:31.5]} 27. a3 {[%clk 0:01:28.1]} 27... b5 {[%clk 0:01:16.3]} 28. Ne2
{[%clk 0:01:14.7]} 28... b4 {[%clk 0:01:09.9]} 29. Nf4 {[%clk 0:01:13]} 29...
bxa3 {[%clk 0:01:01.9]} 30. Qxa5 {[%clk 0:01:13.4]} 30... Nb4 {[%clk 0:00:55]}
31. Rc3 {[%clk 0:01:01.5]} 31... Na2 {[%clk 0:00:49.2]} 32. Qxa3 {[%clk
0:00:31.3]} 32... Nxc1 {[%clk 0:00:43.6]} 33. Rxc1 {[%clk 0:00:30.1]} 33... Bb5
{[%clk 0:00:41.7]} 34. Rxc8 {[%clk 0:00:22.4]} 34... Rxc8 {[%clk 0:00:43.6]} 35.
h4 {[%clk 0:00:23.6]} 35... Qd7 {[%clk 0:00:36.1]} 36. Qa5 {[%clk 0:00:19.5]}
36... Kf7 {[%clk 0:00:30.1]} 37. Qb6 {[%clk 0:00:17.4]} 37... Bc6 {[%clk
0:00:25.3]} 38. b4 {[%clk 0:00:17]} 38... Qb7 {[%clk 0:00:23.4]} 39. Qc5 {[%clk
0:00:16.5]} 39... Bb5 {[%clk 0:00:24.9]} 40. Qd6 {[%clk 0:00:15.3]} 40... Qd7
{[%clk 0:00:23.8]} 41. Qb6 {[%clk 0:00:14.9]} 41... Qc6 {[%clk 0:00:25.2]} 42.
Qa7+ {[%clk 0:00:15.9]} 42... Qc7 {[%clk 0:00:24.2]} 43. Qa2 {[%clk 0:00:15.4]}
43... Qc1+ {[%clk 0:00:19]} 44. Kh2 {[%clk 0:00:16]} 44... Qc4 {[%clk
0:00:20.9]} 45. Qa7+ {[%clk 0:00:15.3]} 45... Qc7 {[%clk 0:00:18.9]} 46. Qxc7+
{[%clk 0:00:15.4]} 46... Rxc7 {[%clk 0:00:18.3]} 47. Nxd5 {[%clk 0:00:17]} 47...
Rc2 {[%clk 0:00:16.5]} 48. Kg1 {[%clk 0:00:16.7]} 48... Rc1+ {[%clk 0:00:17.4]}
49. Kh2 {[%clk 0:00:17.5]} 49... f5 {[%clk 0:00:15.8]} 50. Nf4 {[%clk 0:00:17]}
50... Rb1 {[%clk 0:00:13.8]} 51. f3 {[%clk 0:00:17.2]} 51... exf3 {[%clk
0:00:14.2]} 52. Bxf3 {[%clk 0:00:19.1]} 52... Rxb4 {[%clk 0:00:14.6]} 53. Bd5+
{[%clk 0:00:20.7]} 53... Kf6 {[%clk 0:00:13.3]} 54. Bg2 {[%clk 0:00:21.5]} 54...
Rb2 {[%clk 0:00:13.3]} 55. Kg1 {[%clk 0:00:22.4]} 55... Be2 {[%clk 0:00:13.8]}
56. Nd5+ {[%clk 0:00:22.5]} 56... Kg7 {[%clk 0:00:13.3]} 57. Nf4 {[%clk
0:00:23.6]} 57... Bg4 {[%clk 0:00:14.5]} 58. Kf1 {[%clk 0:00:24]} 58... Rb1+
{[%clk 0:00:15.8]} 59. Kf2 {[%clk 0:00:25.1]} 59... Rb2+ {[%clk 0:00:17.5]} 60.
Kf1 {[%clk 0:00:26.7]} 60... Bd1 {[%clk 0:00:18.7]} 61. Bd5 {[%clk 0:00:26.9]}
61... Bc2 {[%clk 0:00:19.8]} 62. Ne6+ {[%clk 0:00:28]} 62... Kf6 {[%clk
0:00:20.6]} 63. Nf4 {[%clk 0:00:29]} 63... Be4 {[%clk 0:00:22.3]} 64. Bc4 {[%clk
0:00:30.2]} 64... Rb1+ {[%clk 0:00:23.6]} 65. Kf2 {[%clk 0:00:31.2]} 65... Rc1
{[%clk 0:00:25.5]} 66. Be2 {[%clk 0:00:30.8]} 66... Rc2 {[%clk 0:00:26.8]} 67.
Ke1 {[%clk 0:00:32.1]} 67... Rc1+ {[%clk 0:00:28.4]} 68. Kf2 {[%clk 0:00:31.1]}
68... Ra1 {[%clk 0:00:29.9]} 69. Bc4 {[%clk 0:00:31]} 69... Rc1 {[%clk
0:00:30.4]} 70. Be2 {[%clk 0:00:31.8]} 70... Rh1 {[%clk 0:00:29.4]} 71. Bf1
{[%clk 0:00:31.7]} 71... Rh2+ {[%clk 0:00:27.1]} 72. Ng2 {[%clk 0:00:28.5]}
72... g5 {[%clk 0:00:26.5]} 73. Kg1 {[%clk 0:00:21.5]} 73... Rh3 {[%clk
0:00:27.2]} 74. Kf2 {[%clk 0:00:21.1]} 74... gxh4 {[%clk 0:00:27]} 75. Nxh4
{[%clk 0:00:22.3]} 75... Rh2+ {[%clk 0:00:28.4]} 76. Bg2 {[%clk 0:00:22.7]}
76... Bxg2 {[%clk 0:00:29.1]} 77. Nxg2 {[%clk 0:00:24.4]} 77... Rh1 {[%clk
0:00:30.4]} 78. Ne1 {[%clk 0:00:25.5]} 78... h4 {[%clk 0:00:30]} 79. gxh4 {[%clk
0:00:26.6]} 79... Rxh4 {[%clk 0:00:31.1]} 80. Ng2 {[%clk 0:00:23.8]} 80... Rh1
{[%clk 0:00:32]} 81. Nf4 {[%clk 0:00:23.2]} 81... Ra1 {[%clk 0:00:33.6]} 82. Ke2
{[%clk 0:00:23.9]} 82... Kg5 {[%clk 0:00:23.4]} 83. Kd3 {[%clk 0:00:24.5]} 83...
Kg4 {[%clk 0:00:23.7]} 84. d5 {[%clk 0:00:26.1]} 84... Kf3 {[%clk 0:00:22.5]}
85. Kd4 {[%clk 0:00:23.6]} 85... Rd1+ {[%clk 0:00:18.4]} 86. Ke5 {[%clk
0:00:21.4]} 86... Kxe3 {[%clk 0:00:20]} 87. Ne6 {[%clk 0:00:18.7]} 87... Rxd5+
{[%clk 0:00:08.9]} 88. Kxd5 {[%clk 0:00:19.6]} 88... f4 {[%clk 0:00:08]} 89. Nd4
{[%clk 0:00:20]} 89... f3 {[%clk 0:00:09.9]} 90. Nxf3 {[%clk 0:00:20.9]} 1/2-1/2

[Event "*** Titled Tuesday 3|2 Blitz"]
[Site "Chess.com"]
[Date "2015.05.05"]
[Round "4"]
[White "Konavets"]
[Black "desxmchna"]
[Result "1-0"]
[WhiteElo "2422"]
[BlackElo "2148"]
[TimeControl "180+2"]
[EndTime "11:45:14 PDT"]
[Termination "Konavets won by resignation"]

1. e4 {[%clk 0:03:01.9]} 1... c5 {[%clk 0:03:00.7]} 2. Nf3 {[%clk 0:03:02.9]}
2... d6 {[%clk 0:03:02]} 3. d4 {[%clk 0:03:04.1]} 3... cxd4 {[%clk 0:03:03.9]}
4. Nxd4 {[%clk 0:03:05.9]} 4... Nf6 {[%clk 0:03:05.3]} 5. Nc3 {[%clk 0:03:07.6]}
5... g6 {[%clk 0:03:06.8]} 6. Be3 {[%clk 0:03:08.7]} 6... Bg7 {[%clk 0:03:08.3]}
7. f3 {[%clk 0:03:10.3]} 7... O-O {[%clk 0:03:09.9]} 8. Qd2 {[%clk 0:03:12.1]}
8... Nc6 {[%clk 0:03:11.2]} 9. O-O-O {[%clk 0:03:13.7]} 9... d5 {[%clk
0:03:12.4]} 10. Kb1 {[%clk 0:03:13.9]} 10... Nxd4 {[%clk 0:03:11.1]} 11. e5
{[%clk 0:03:14.7]} 11... Nf5 {[%clk 0:03:03.1]} 12. exf6 {[%clk 0:03:16.1]}
12... exf6 {[%clk 0:03:01.7]} 13. Bc5 {[%clk 0:03:17.4]} 13... Re8 {[%clk
0:02:59.7]} 14. Nxd5 {[%clk 0:03:11.8]} 14... Be6 {[%clk 0:02:53.5]} 15. Bb5
{[%clk 0:03:12.8]} 15... Bxd5 {[%clk 0:02:40]} 16. Bxe8 {[%clk 0:03:09.6]} 16...
Bxa2+ {[%clk 0:02:32.3]} 17. Kxa2 {[%clk 0:03:11.5]} 17... Qxe8 {[%clk
0:02:33.3]} 18. Qd7 {[%clk 0:03:01.3]} 18... Qe5 {[%clk 0:02:18.9]} 19. Rd5
{[%clk 0:02:42]} 19... Qe2 {[%clk 0:02:10]} 20. Qxb7 {[%clk 0:02:41.7]} 20...
Qc4+ {[%clk 0:02:07.4]} 21. Kb1 {[%clk 0:02:42.2]} 21... Re8 {[%clk 0:02:02.9]}
22. Rhd1 {[%clk 0:02:37.8]} 22... h5 {[%clk 0:01:44.8]} 23. Qxa7 {[%clk
0:02:27.7]} 23... Re2 {[%clk 0:01:38]} 24. Qb8+ {[%clk 0:02:24.6]} 24... Kh7
{[%clk 0:01:38.1]} 25. Qb3 {[%clk 0:02:26.1]} 25... Qa6 {[%clk 0:01:08.2]} 26.
Rxf5 {[%clk 0:02:19.6]} 26... gxf5 {[%clk 0:01:07.5]} 27. Qxf7 {[%clk
0:02:20.2]} 27... Rxg2 {[%clk 0:01:06.6]} 28. Qxh5+ {[%clk 0:02:20.2]} 28... Bh6
{[%clk 0:01:05.2]} 29. Rd7+ {[%clk 0:02:20.4]} 1-0

[Event "*** Titled Tuesday 3|2 Blitz"]
[Site "Chess.com"]
[Date "2015.05.05"]
[Round "4"]
[White "Lupul_Cenusiu"]
[Black "llamalord42"]
[Result "1-0"]
[WhiteElo "2318"]
[BlackElo "2226"]
[TimeControl "180+2"]
[EndTime "11:45:55 PDT"]
[Termination "Lupul_Cenusiu won by resignation"]

1. d4 {[%clk 0:03:00.8]} 1... Nf6 {[%clk 0:03:01.9]} 2. Bg5 {[%clk 0:03:00.9]}
2... g6 {[%clk 0:02:59.4]} 3. Bxf6 {[%clk 0:03:01.6]} 3... exf6 {[%clk
0:03:01.3]} 4. e3 {[%clk 0:03:02.7]} 4... Bg7 {[%clk 0:03:02.6]} 5. Ne2 {[%clk
0:03:02.1]} 5... f5 {[%clk 0:03:04]} 6. g3 {[%clk 0:03:03.4]} 6... O-O {[%clk
0:03:04.8]} 7. Bg2 {[%clk 0:03:04.7]} 7... d6 {[%clk 0:03:06.4]} 8. O-O {[%clk
0:03:05.7]} 8... Nd7 {[%clk 0:03:07.8]} 9. c4 {[%clk 0:03:07]} 9... Nf6 {[%clk
0:03:09]} 10. Nbc3 {[%clk 0:03:08.4]} 10... h5 {[%clk 0:03:08.2]} 11. b4 {[%clk
0:03:08]} 11... h4 {[%clk 0:03:08.2]} 12. Nd5 {[%clk 0:03:02.1]} 12... Ng4
{[%clk 0:03:04.3]} 13. f3 {[%clk 0:02:58.3]} 13... Nf6 {[%clk 0:02:57]} 14. Rc1
{[%clk 0:02:53.1]} 14... Re8 {[%clk 0:02:47.2]} 15. Rc3 {[%clk 0:02:49.6]} 15...
Bh6 {[%clk 0:02:36.6]} 16. Nxf6+ {[%clk 0:02:44.9]} 16... Qxf6 {[%clk
0:02:35.6]} 17. f4 {[%clk 0:02:46.2]} 17... Kg7 {[%clk 0:02:15]} 18. Kf2 {[%clk
0:02:46.3]} 18... g5 {[%clk 0:02:15.2]} 19. c5 {[%clk 0:02:39.8]} 19... c6
{[%clk 0:02:06.2]} 20. cxd6 {[%clk 0:02:38.6]} 20... Qxd6 {[%clk 0:02:07.2]} 21.
a3 {[%clk 0:02:36.2]} 21... Be6 {[%clk 0:02:06.6]} 22. Rc5 {[%clk 0:02:33.5]}
22... g4 {[%clk 0:01:57.8]} 23. Qd3 {[%clk 0:02:24.3]} 23... h3 {[%clk
0:01:58.4]} 24. Bh1 {[%clk 0:02:25.4]} 24... Kg6 {[%clk 0:01:56.4]} 25. Rfc1
{[%clk 0:02:25.3]} 25... Bg7 {[%clk 0:01:53.9]} 26. b5 {[%clk 0:02:24.4]} 26...
cxb5 {[%clk 0:01:41.4]} 27. Qxb5 {[%clk 0:02:20.5]} 27... b6 {[%clk 0:01:08.6]}
28. Rc6 {[%clk 0:02:16.6]} 28... Qe7 {[%clk 0:01:09.3]} 29. d5 {[%clk
0:02:12.5]} 29... a6 {[%clk 0:00:49]} 30. Qb4 {[%clk 0:02:12.4]} 1-0

[Event "*** Titled Tuesday 3|2 Blitz"]
[Site "Chess.com"]
[Date "2015.05.05"]
[Round "4"]
[White "Aygehovit1992"]
[Black "goldaxe"]
[Result "1-0"]
[WhiteElo "2452"]
[BlackElo "2166"]
[TimeControl "180+2"]
[EndTime "11:47:00 PDT"]
[Termination "Aygehovit1992 won by resignation"]

1. e4 {[%clk 0:03:01.9]} 1... e5 {[%clk 0:03:00.3]} 2. Nf3 {[%clk 0:03:03.2]}
2... Nc6 {[%clk 0:03:01.7]} 3. Bb5 {[%clk 0:03:04.3]} 3... a6 {[%clk 0:03:02.8]}
4. Ba4 {[%clk 0:03:05.9]} 4... Nf6 {[%clk 0:03:04.4]} 5. O-O {[%clk 0:03:07.6]}
5... Be7 {[%clk 0:03:05.8]} 6. Re1 {[%clk 0:03:08.3]} 6... b5 {[%clk 0:03:07.2]}
7. Bb3 {[%clk 0:03:09.6]} 7... O-O {[%clk 0:03:07.9]} 8. a4 {[%clk 0:03:10.8]}
8... b4 {[%clk 0:03:05.3]} 9. d3 {[%clk 0:03:12.2]} 9... d6 {[%clk 0:03:03.4]}
10. a5 {[%clk 0:03:13.5]} 10... Be6 {[%clk 0:02:57.2]} 11. Be3 {[%clk
0:03:14.5]} 11... Bxb3 {[%clk 0:02:56.4]} 12. cxb3 {[%clk 0:03:15.3]} 12... d5
{[%clk 0:02:53.8]} 13. Nbd2 {[%clk 0:03:15]} 13... h6 {[%clk 0:02:47.8]} 14. Qc2
{[%clk 0:03:14.5]} 14... Qd7 {[%clk 0:02:41.9]} 15. Rec1 {[%clk 0:03:13.4]}
15... dxe4 {[%clk 0:02:05.8]} 16. dxe4 {[%clk 0:03:11.9]} 16... Nd4 {[%clk
0:02:05.1]} 17. Bxd4 {[%clk 0:03:12.5]} 17... exd4 {[%clk 0:02:05.8]} 18. Qxc7
{[%clk 0:03:13.6]} 18... Rfd8 {[%clk 0:01:52.6]} 19. Qxd7 {[%clk 0:03:12.6]}
19... Rxd7 {[%clk 0:01:53]} 20. Rc4 {[%clk 0:03:13.7]} 20... Rad8 {[%clk
0:01:49.1]} 21. Ne5 {[%clk 0:03:12.2]} 21... Rd6 {[%clk 0:01:44.3]} 22. Nc6
{[%clk 0:03:11.2]} 22... R8d7 {[%clk 0:01:41.7]} 23. e5 {[%clk 0:03:11.5]} 23...
Rxc6 {[%clk 0:01:37.8]} 24. Rxc6 {[%clk 0:03:12.3]} 24... Ng4 {[%clk 0:01:37.7]}
25. Rxa6 {[%clk 0:03:12]} 25... d3 {[%clk 0:01:38.8]} 26. e6 {[%clk 0:03:10.2]}
26... fxe6 {[%clk 0:01:38.7]} 27. Rxe6 {[%clk 0:03:10.9]} 27... Bc5 {[%clk
0:01:40.2]} 28. g3 {[%clk 0:03:01.2]} 28... Bxf2+ {[%clk 0:01:34.6]} 29. Kg2
{[%clk 0:03:01.9]} 29... Be3 {[%clk 0:01:35]} 30. Nc4 {[%clk 0:02:58.7]} 30...
d2 {[%clk 0:01:33.6]} 31. Nxe3 {[%clk 0:02:59.3]} 31... Nxe3+ {[%clk 0:01:33.1]}
32. Rxe3 {[%clk 0:03:00.3]} 32... d1=Q {[%clk 0:01:34.1]} 33. Rxd1 {[%clk
0:03:01.3]} 33... Rxd1 {[%clk 0:01:35.4]} 34. a6 {[%clk 0:02:55.3]} 34... Ra1
{[%clk 0:01:32.7]} 35. Re8+ {[%clk 0:02:54.7]} 35... Kf7 {[%clk 0:01:33]} 36.
Ra8 {[%clk 0:02:55.7]} 36... Ra2 {[%clk 0:01:28.3]} 37. a7 {[%clk 0:02:55.9]}
37... Rxb2+ {[%clk 0:01:24.8]} 38. Kh3 {[%clk 0:02:57.3]} 38... Ra2 {[%clk
0:01:25.9]} 39. Kg4 {[%clk 0:02:58.3]} 39... Kg6 {[%clk 0:01:23.7]} 40. Kf4
{[%clk 0:02:57.4]} 40... Kh5 {[%clk 0:00:53.2]} 41. h3 {[%clk 0:02:48.3]} 41...
g5+ {[%clk 0:00:50.6]} 42. Ke5 {[%clk 0:02:49.5]} 42... g4 {[%clk 0:00:16.7]}
43. hxg4+ {[%clk 0:02:49.8]} 43... Kxg4 {[%clk 0:00:16.7]} 44. Rg8+ {[%clk
0:02:50.2]} 44... Kh3 {[%clk 0:00:17.1]} 45. a8=Q {[%clk 0:02:51.8]} 45... Rxa8
{[%clk 0:00:18.3]} 46. Rxa8 {[%clk 0:02:52.7]} 46... Kxg3 {[%clk 0:00:20.2]} 47.
Rh8 {[%clk 0:02:53.9]} 1-0